Cogmind - Beta 13 @@@ ROGUE MODE // 2024.07.11 @ 15:38:13 Player: weedlord420 Result: Self-destructed Performance ------------- Evolutions (2) 1000 Regions Visited (4) 800 Robots Destroyed (54) 270 Value Destroyed (1335) 1335 Prototype IDs (1) 20 Alien Tech Used (0) 0 Bonus (7) 7 TOTAL SCORE: 3432 Bonus ------- Follower Combat Kills 7 Cogmind --------- Core Integrity 495/550 Matter 300/300 Energy 140/140 System Corruption 0% Temperature Warning (314) Movement Treading (165) Location -8/Materials Parts ------- > --- POWER (1) -------- Light Deuterium Engine > --- PROPULSION (3) --- Light Treads Armored Treads > --- UTILITY (5) ------ Improved Heat Sink Medium Storage Unit Improved Sensor Array Improved Signal Interpreter Hardened Light Armor Plating > --- WEAPON (2) ------- Subdweller Laser Barrage Gun > --- INVENTORY (10) --- Subdweller Power Source Large Matter Pod (150) YI-UF0's Bottomless Matter Pit Recoil Stabilizer Medium Armor Plating Dirty Datajack (20) Flamer Flamer Scrap Shield Fragment (49) Peak State ------------ > --- POWER ------------ Light Deuterium Engine > --- PROPULSION ------- Light Treads Light Treads Armored Treads > --- UTILITY ---------- Medium Storage Unit Improved Sensor Array Improved Signal Interpreter Particle Charger Hardened Light Armor Plating > --- WEAPON ----------- Shock Rifle Subdweller Laser > --- INVENTORY -------- Subdweller Power Source Large Matter Pod YI-UF0's Bottomless Matter Pit Recoil Stabilizer Hacking Suite Barrage Gun Dirty Datajack Flamer Flamer Scrap Shield Fragment [Rating: 28] Favorites ----------- Power Ion Engine Engine Ion Engine Propulsion Light Treads Treads Light Treads Utility Medium Storage Unit Device Shield Generator Storage Medium Storage Unit Processor Targeting Computer Protection Light Armor Plating Weapon Improved EM Shotgun Energy Gun Improved EM Shotgun Ballistic Gun Subdweller Machine Gun Special Weapon Flamer Build | -11 -10 -10 -10 -8 ------- Run | Yrd Mat Min Sub Mat Slots Evolved 4 | . . . . 4 Power . | . . . . . Propulsion 1 | . . . . 1 Utility 3 | . . . . 3 Weapon . | . . . . . Parts Attached 42 | 1 12 2 12 15 Power 3 | . 1 . 1 1 Engine 3 | . 1 . 1 1 Core . | . . . . . Reactor . | . . . . . Propulsion 9 | 1 2 1 3 2 Treads 9 | 1 2 1 3 2 Leg . | . . . . . Wheel . | . . . . . Hover . | . . . . . Flight . | . . . . . Utility 10 | . 3 . 2 5 Device 4 | . 1 . . 3 Storage 2 | . 2 . . . Processor 2 | . . . 1 1 Hackware . | . . . . . Protection 2 | . . . 1 1 Artifact . | . . . . . Weapon 20 | . 6 1 6 7 Energy Gun 8 | . 3 1 . 4 Energy Cannon . | . . . . . Ballistic Gun 10 | . 3 . 6 1 Ballistic Cannon . | . . . . . Launcher . | . . . . . Special Weapon 2 | . . . . 2 Impact Weapon . | . . . . . Slashing Weapon . | . . . . . Piercing Weapon . | . . . . . Special Melee Weapon . | . . . . . Unidentified Prototypes 1 | . 1 . . . Parts Lost 7 | . 1 . 2 4 Power . | . . . . . Propulsion 3 | . . . 1 2 Utility 3 | . 1 . 1 1 Weapon 1 | . . . . 1 Highest Loss Streak 3 | . 1 . 1 3 To Critical Strikes . | . . . . . Average Slot Usage (%) 96 | . 95 100 98 79 Engine 13 | . 14 14 14 9 Treads 27 | . 28 28 27 19 Device 1 | . 3 . . 7 Storage 18 | . 20 28 14 9 Processor 3 | . . . 6 9 Protection 3 | . . . 5 7 Energy Gun 8 | . 16 14 . 12 Ballistic Gun 17 | . 11 14 27 4 Naked Turns . | . . . . . Heaviest Build 31 | . 25 25 25 31 Greatest Support 60 | 20 40 40 40 60 Greatest Overweight (x) 1 | . . . . 1 Average Overweight (x) . | . . . . . Largest Inventory Capacity 10 | 5 10 10 10 10 Average Capacity 9 | 5 8 10 10 10 Most Carried 10 | 5 10 10 10 10 Average Carried 9 | 4 6 9 9 9 Final Capacity 10 | 5 10 10 10 10 Final Carried 10 | 5 10 10 9 9 Class Distribution -------------------- 96% | Mutant 3% | Scavenger-Mutant Dominant Class ---------------- Mutant | -10/Materials Mutant | -10/Mines Mutant | -10/Subcaves Mutant | -8/Materials Resources | -11 -10 -10 -10 -8 ----------- Run | Yrd Mat Min Sub Mat Matter Collected 1345 | 210 400 41 507 187 Remotely . | . . . . . Salvage Created 1845 | . 725 118 582 420 Parts 122 | . 62 7 34 19 Haulers Intercepted 2 | . 2 . . . Recyclers Shooed 1 | . . . . 1 Parts Field Recycled . | . . . . . Retrieved Matter . | . . . . . Parts Self-Destructed 15 | . . . 15 . Prevented 1 | . . . 1 . Kills | -11 -10 -10 -10 -8 ------- Run | Yrd Mat Min Sub Mat Combat Hostiles Destroyed 41 | . 16 3 17 5 Guns 37 | . 13 3 17 4 Cannons 1 | . . . . 1 AOE 3 | . 3 . . . Classes Destroyed 10 | . 6 1 2 1 Worker 1 | . . . . 1 Tunneler 1 | . . 1 . . Hauler 2 | . 2 . . . Recycler 2 | . 1 . . 1 Operator 3 | . 2 . . 1 Watcher 4 | . 3 . . 1 Swarmer 15 | . 9 2 4 . Grunt 10 | . 7 . . 3 Sentry 4 | . . . 2 2 Subdweller 11 | . . . 11 . Best Kill Streak 6 | . 6 2 4 2 Combat Bots Only 5 | . 5 2 4 2 Max Kills in Single Turn 2 | . 2 1 1 1 Gunslinging 1 | . 1 . . . Exploded 2 | . 2 . . . Melee . | . . . . . Uniques/NPCs Destroyed 1 | . . 1 . . YI-UF0 (-10/Mines) Combat | -11 -10 -10 -10 -8 -------- Run | Yrd Mat Min Sub Mat Hostile Shots Fired 202 | . 66 7 85 44 Missed 62 | . 20 2 31 9 Damage Taken 1971 | . 414 148 852 557 Core 288 | . 47 21 165 55 Absorbed by Shields 96 | . 96 . . . Core Remaining (%) 53 | 100 . . 6 . Volleys Fired 143 | . 38 7 69 29 Largest 2 | . 2 2 2 2 Hottest 110 | . 90 65 65 110 Shots Fired 272 | . 75 14 138 45 Gun 269 | . 75 14 138 42 Cannon . | . . . . . Launcher . | . . . . . Special 3 | . . . . 3 Kinetic 183 | . 27 7 136 13 Thermal 15 | . . . . 15 Explosive . | . . . . . Electromagnetic 74 | . 48 7 2 17 Robot Hit Streak 12 | . 10 2 12 11 Robot Miss Streak 5 | . 4 2 5 2 Penetration Max . | . . . . . Secondary Targets 8 | . 4 . 3 1 Max Gunslinging Chain 1 | . 1 . 1 1 Shots Hit Robots 159 | . 50 7 67 35 Core Hits 87 | . 39 7 27 14 Critical Kills . | . . . . . Critical Parts Destroyed 1 | . 1 . . . Critical Strikes 2 | . 1 . . 1 Destroy 1 | . 1 . . . Corrupt 1 | . . . . 1 Melee Attacks . | . . . . . Impact . | . . . . . Slashing . | . . . . . Piercing . | . . . . . Sneak Attacks . | . . . . . Combat Hostiles . | . . . . . Follow-up Attacks . | . . . . . Damage Inflicted 3136 | . 1065 133 1254 684 Guns 2730 | . 743 92 1254 641 Cannons . | . . . . . Explosions 373 | . 310 41 . 22 Melee . | . . . . . Ramming 12 | . 12 . . . Kinetic 1538 | . 147 . 1216 175 Thermal 572 | . 310 41 . 221 Explosive . | . . . . . Electromagnetic 1014 | . 596 92 38 288 Impact . | . . . . . Slashing . | . . . . . Piercing . | . . . . . Highest Corruption . | . . . . . Average Corruption . | . . . . . Corruption Purged . | . . . . . Corruption Blocked . | . . . . . Overload Shots . | . . . . . Overflow Damage 19 | . 19 . . . Projectiles . | . . . . . Explosions 19 | . 19 . . . Melee . | . . . . . Knockbacks 1 | . 1 . . . Impact 1 | . 1 . . . Kinetic . | . . . . . Secondary . | . . . . . Self-Inflicted Damage 98 | . 74 . . 24 Shots 4 | . 3 . . 1 Rammed 2 | . 2 . . . Targets Rammed 2 | . 2 . . . Kicked . | . . . . . Crushed . | . . . . . Highest Temperature 392 | . 186 6 264 392 Average Temperature 101 | . 50 2 144 180 Received Heat Transfer 809 | . 102 . 401 306 Effects 3 | . . . . 3 Shutdowns 1 | . . . . 1 Interference 1 | . . . . 1 Damage (minor) 1 | . . . . 1 Siege Activations . | . . . . . Robots Corrupted . | . . . . . Combat Hostiles . | . . . . . Parts Fried 2 | . 1 . . 1 Impact Corruptions . | . . . . . Robots Melted . | . . . . . Combat Hostiles . | . . . . . Parts Melted . | . . . . . Heat Transferred 910 | . 450 50 . 410 Parts Sabotaged . | . . . . . Parts Stolen . | . . . . . Parts Stripped . | . . . . . Power Chain Reactions 8 | . 6 1 . 1 Alert | -11 -10 -10 -10 -8 ------- Run | Yrd Mat Min Sub Mat Peak Influence 373 | . 373 158 . 257 Initial 114 | . . 86 . 114 Average 138 | . 181 73 . 158 Maximum Alert Level 1 | . 1 . . 1 Low Security (%) 63 | 100 34 100 . 68 Level 1 36 | . 65 . . 31 Level 2 . | . . . . . Level 3 . | . . . . . Level 4 . | . . . . . Level 5 . | . . . . . High Security . | . . . . . Max Security . | . . . . . Squads Dispatched 5 | . 2 1 . 2 Investigation 2 | . 2 . . . Extermination . | . . . . . Reinforcement 1 | . . . . 1 Assault 1 | . . 1 . . Garrison 1 | . . . . 1 Intercept . | . . . . . Searches Triggered . | . . . . . Construction Impeded . | . . . . . Haulers Reinforced . | . . . . . Active Scanning Responses . | . . . . . Cargo Convoy Interrupts . | . . . . . Stealth | -11 -10 -10 -10 -8 --------- Run | Yrd Mat Min Sub Mat Distress Signals 1 | . 1 . . . Communications Jammed . | . . . . . Distress Signals . | . . . . . Times Spotted 56 | . 25 3 20 8 Peak Tracking Total 7 | . 7 1 6 3 Tactical Retreats 3 | . 2 . 1 . Traps | -11 -10 -10 -10 -8 ------- Run | Yrd Mat Min Sub Mat Traps Triggered 2 | . 1 . 1 . Indirectly . | . . . . . Trap Hack Attempts . | . . . . . Triggered . | . . . . . Disarmed . | . . . . . Reprogrammed . | . . . . . Reused . | . . . . . Traps Extracted . | . . . . . Installed . | . . . . . Triggered . | . . . . . Machines | -11 -10 -10 -10 -8 ---------- Run | Yrd Mat Min Sub Mat Machines Disabled 4 | . 3 . . 1 Max in Single Turn 2 | . 2 . . 1 Machines Repaired . | . . . . . Machines Dismantled . | . . . . . Machines Sabotaged . | . . . . . Overloaded Fab Kills . | . . . . . Hacking | -11 -10 -10 -10 -8 --------- Run | Yrd Mat Min Sub Mat Machines Accessed 4 | . 3 . . 1 Terminals 3 | . 2 . . 1 Fabricators . | . . . . . Repair Stations 1 | . 1 . . . Recycling Units . | . . . . . Scanalyzers . | . . . . . Garrison Access . | . . . . . Total Hacks 8 | . 6 . . 2 Successful 3 | . 2 . . 1 Failed 5 | . 4 . . 1 Catastrophic 1 | . . . . 1 Database Lockouts . | . . . . . Manual . | . . . . . Terminals 6 | . 4 . . 2 Fabricators . | . . . . . Repair Stations 2 | . 2 . . . Recycling Units . | . . . . . Scanalyzers . | . . . . . Garrison Access . | . . . . . Terminal Hacks 2 | . 1 . . 1 Recycling Unit Index 1 | . . . . 1 Registered Components 1 | . 1 . . . Fabricator Hacks . | . . . . . Repair Station Hacks 1 | . 1 . . . Scan Component 1 | . 1 . . . Recycling Unit Hacks . | . . . . . Scanalyzer . | . . . . . Garrison Access Hacks . | . . . . . Unauthorized Hacks . | . . . . . Terminals . | . . . . . Fabricators . | . . . . . Repair Stations . | . . . . . Recycling Units . | . . . . . Scanalyzers . | . . . . . Garrison Access . | . . . . . Data Cores Recovered 1 | . 1 . . . Used . | . . . . . Hacking Detections 4 | . 3 . . 1 Full Trace Events . | . . . . . Feedback Events . | . . . . . Feedback Blocked . | . . . . . Robot Schematics Acquired . | . . . . . Robots Built . | . . . . . Authchips . | . . . . . Time . | . . . . . Total Robot Build Rating . | . . . . . Part Schematics Acquired . | . . . . . Parts Built . | . . . . . Authchips . | . . . . . Time . | . . . . . Total Part Build Rating . | . . . . . Parts Repaired . | . . . . . Time . | . . . . . Parts Recycled . | . . . . . Recycled Matter . | . . . . . Retrieved Matter . | . . . . . Retrieved Components . | . . . . . Parts Scanalyzed . | . . . . . Part Schematics Acquired . | . . . . . Parts Damaged . | . . . . . Bothacking | -11 -10 -10 -10 -8 ------------ Run | Yrd Mat Min Sub Mat Used RIF Installer . | . . . . . Robots Hacked . | . . . . . Non-combat . | . . . . . Combat . | . . . . . Robot Hacks Applied . | . . . . . Relay Couplers Released . | . . . . . Fabnet Peak Effective % . | . . . . . Robots Rewired . | . . . . . Allies Hacked . | . . . . . Hacks Repelled . | . . . . . Allies | -11 -10 -10 -10 -8 -------- Run | Yrd Mat Min Sub Mat Total Allies 1 | . . 1 . . Largest Group 1 | . . 1 . . Highest-Rated Group 31 | . . 31 . . Highest-Rated Ally 31 | . . 31 . . Total Orders . | . . . . . Ally Attacks 7 | . . 7 . . Total Damage 106 | . . 106 . . Kills 1 | . . 1 . . Allies Corrupted . | . . . . . Allies Melted . | . . . . . Intel | -11 -10 -10 -10 -8 ------- Run | Yrd Mat Min Sub Mat Robot Analysis Total . | . . . . . Derelict Logs Recovered 2 | . . 1 1 . Drone Launches . | . . . . . Drone Recoveries . | . . . . . Exploration | -11 -10 -10 -10 -8 ------------- Run | Yrd Mat Min Sub Mat Turns Passed 4224 | 40 1187 814 1748 435 Spaces Moved 2156 | 34 607 413 932 170 Core 18 | 18 . . . . Treads 2138 | 16 607 413 932 170 Legs . | . . . . . Wheels . | . . . . . Hover . | . . . . . Flight . | . . . . . Fastest Speed 50 | 50 160 160 160 160 Average Speed 159 | 101 160 160 160 162 Slowest Speed 240 | 160 160 160 160 240 Overloaded Moves . | . . . . . Propulsion Burnouts . | . . . . . Robots Hopped . | . . . . . Cave-ins Triggered . | . . . . . Exploration Rate (%) 53 | 4 96 89 62 16 Regions Visited 4 Branch Regions 2 Pre-discovered Areas 1 | . . 1 . . Known Exits Taken . | . . . . . Unknown Exits Taken 4 | 1 1 1 1 . Scrap Searched 3 | . . 1 2 . Spaces Dug . | . . . . . Terrain Destroyed 16 | . 11 . . 5 Melee . | . . . . . Projectile 1 | . . . . 1 AOE 15 | . 11 . . 4 Terrain Rammed . | . . . . . Walls Destroyed . | . . . . . Machines Disabled . | . . . . . Actions | -11 -10 -10 -10 -8 --------- Run | Yrd Mat Min Sub Mat Total 2679 | 40 750 553 1058 278 Wait 282 | . 76 129 23 54 Move 2152 | 33 606 412 931 170 Hop . | . . . . . Pick Up 32 | 6 13 1 9 3 Fast Attach 14 | . 1 . 4 9 Attach 10 | 1 6 . 1 2 Detach 1 | . . . . 1 Swap 18 | . 5 2 7 4 Drop 25 | . 3 2 14 6 Fire 143 | . 38 7 69 29 Melee . | . . . . . Ram . | . . . . . Kick . | . . . . . Crush 2 | . 2 . . . Escape Stasis . | . . . . . Rewire . | . . . . . Trap . | . . . . . Miscellaneous . | . . . . . Route ------- -11/Scrapyard -10/Materials (discovered 4 exits: [*Mat x3] / [*Min]) -10/Mines (discovered 2 exits: [*Mat] / [*Sub]) -10/Subcaves (discovered 3 exits: *Mat x2 / [*Rec]) -8/Materials History --------- Turn | Location | Event 16 | -11/Scrapyard | Discovered new exit (range 16) 41 | -11/Scrapyard | Entered Materials 301 | -10/Materials | Build established: Mutant 331 | -10/Materials | Discovered new exit (range 5) 704 | -10/Materials | Discovered new exit (range 12) 857 | -10/Materials | Discovered new exit (range 11) 1189 | -10/Materials | Discovered new exit (range 8) 1228 | -10/Materials | Entered Mines 1229 | -10/Mines | Met a Derelict testing a Signal Generator 1233 | -10/Mines | Learned location of Zion (-7) 1345 | -10/Mines | Destroyed YI-UF0 1361 | -10/Mines | Found Corrupted Prototype Storage 1812 | -10/Mines | Discovered new exit (range 5) 2039 | -10/Mines | Discovered new exit (range 3) 2042 | -10/Mines | Entered Subcaves 2574 | -10/Subcaves | Shifting Twisted Machinery released Barrage Gun 2574 | -10/Subcaves | Shifting Twisted Machinery released Sub. Monowheel 2719 | -10/Subcaves | Shifting Twisted Machinery released Barrage Gun 2721 | -10/Subcaves | Shifting Twisted Machinery released Flamer 2795 | -10/Subcaves | Shifting Twisted Machinery released Flamer 2824 | -10/Subcaves | Core integrity fell below 50% 2836 | -10/Subcaves | Shifting Twisted Machinery released Sub. Monowheel 2998 | -10/Subcaves | A swath of the cavern ceiling suddenly collapsed 3114 | -10/Subcaves | Discovered new exit (range 14) 3214 | -10/Subcaves | Discovered new exit (range 12) 3562 | -10/Subcaves | Learned Materials trap positions 3689 | -10/Subcaves | Discovered new exit (range 14) 3697 | -10/Subcaves | Core integrity fell below 20% 3790 | -10/Subcaves | Entered Materials 3790 | -8/Materials | Evolved 4 slots: Propulsion x1, Utility x3 3791 | -8/Materials | Loaded intel: 13 trap records 4162 | -8/Materials | Garrison activated, responded to threat 4225 | -8/Materials | Self-destructed Last Messages --------------- Shock Rifle destroyed. Power failure, Lgt. Deuterium Engine shutdown. Overheating: Med. Storage Unit damaged (-121). Acquired Imp. Heat Sink. Sub. Laser shoots sparks and powers down. G-47 Trooper misfires. Overheating: System interference. Imp. Heat Sink temporarily disabled. G-47 Trooper IFF system glitched. G-47 Trooper destroyed. Acquired 30 matter. Lgt. Treads destroyed. Acquired 10 matter. Acquired 4 matter. Critical hit (Burn: +37). Acquired 4 matter. Acquired 3 matter. G-47 Trooper destroyed. Acquired 5 matter. Acquired 4 matter. Map ----- +----------------------------------------------------+ | ?????????????????????????????????????????????????? | | ?????????????????????????????????????????????????? | | ?????????????????????????????????????????????????? | | ?????????????????????????????????????????????????? | | ?????????????????????????????????????????????????? | | ?????????????????????????????????????????????????? | | ?????????????????????????????????????????????????? | | ?????????????????????????????????????????????????? | | ?????????????????????????? ????????????????????? | | ???????????????????????^?? ????????????????????? | | ?????????????????????^???? ????????????????????? | | ?????????????????????????? ????????????????????? | | ?????????????????????????" ????????????????????? | | ????????????????^???????"" ????????????????????? | | ??????????????????"""???"" #????????????????????? | | ??????????????????? #????????????????????? | | ?????????????????? ^ ##???????????????????? | | ????????????????? """ ""#??????????????????? | | ???????????????T? """ ""#??????????????????? | | ?????????????#"" """ """ T"#??????????????????? | | ????????????#### "" G" ""#??????????????????? | | ??????????? """ t""???????????????????? | | ??????????? / #????????????????????? | | ??????????? !%= [% !#????????????????????? | | ????????????????#"T"#T###/####???????????????????? | | ??????????????????????# @! #???????????????????? | | ??????????????????????# """ #???????????????????? | | ??????????????????????# """ #???????????????????? | | ??????????????????????# """ #???????????????????? | | ??????????????????????# #???????????????????? | | ???????????w??????????# #???????????????????? | | ??????????????????????###+####???????????????????? | | ???????????????????????#"!##?????????????????????? | | ???????????????????????##%##?????????????????????? | | ????????????????????????# #??????????????????????? | | ????????????????????????# #??????????????????????? | | ????????????????????????# #??????????????????????? | | ????????????????????????# #??????????????????????? | | ????????????????????????# ########?###?????##????? | | ????????????????????????# ## #?# ??? #????? | | ????????????????????????# ## #?# """ #????? | | ????????????????????????# #?# """ #????? | | ????????????????????????####*% #?# """ #????? | | ???????????????????????????# ! #?# """ #????? | | ???????????????????????????## ##?# """ #????? | | ????????????????????????????# #??# #????? | | ????????????????????????????# #??? #????? | | ????????????????????????????# #????? ??????? | | ???????????????????????????## ##???###+###?????? | | ???????????????????????????# #####! #?????? | +----------------------------------------------------+ Best States ------------- Heat Dissipation 45 Energy Generation 14 Energy Capacity 250 Matter Stores 300 Matter Capacity 300 Sight Range 16 Robot Scan Range 15 Terrain Scan Density 10 Armor Coverage 150 Evasion (%) 50 Targeting Accuracy 5 Recoil Reduction 3 Particle Charging 15 Item Schematics ----------------- None Robot Schematics ------------------ None Fabricated ------------ Nothing Alien Tech Used ----------------- None Achievements -------------- None Challenges ------------ None Game ------ Seed LightIntegratedExtractor Manual? 0 Play Time 00:22:18 Cumulative 27.6 hours Start 2024.07.11 @ 15:18:42 End 2024.07.11 @ 15:38:13 Sessions 1 Manual Loads 0 Difficulty Rogue Special Mode None Game No. 63 Rogue 62 Adventurer 1 Explorer 0 Win Type - Total 0 Types 0/0/0/0/0/0/0/0/0 Lore% 13 Gallery% 25 Achievement% 20 Wizard Run 0 Options --------- Layout 1 ASCII 0 Keyboard 0 Movement Mouse Keybinds 0 Fullscreen 2 Font 24/Terminus Map View 50x35 Zoom Use 0% Tactical HUD 0 Map Filters NONE Filters NONE Steam 1 RUN: d984b6b8-5b31-41e7-8d43-7575643f7b7b